Workbook

Sheet Cover
B2: Version 1: 2017
B3: Budget Tracking and Analysis Tool (BTAT)
B5: To use this budget tracking and analysis tool, please see the Training Manual and follow the instructions below.
B7: Instructions
B9: If asked to "Enable macros" at the top of your screen in a yellow command bar, please click "enable" (this will enable automatic updates on the summary tab)

Sheet Template- BTAT
A1: Template: BTAT
A2: Instructions:
A3: 1. Please note that this a pre-designed template for reference. However, the user can add/delete Direct Nutrition Interventions (DNIs) as per their requirement.
A4: 2. Please enter DNIs under respective "Category of DNIs" in columns A to E. These would be reflected in the subsequent sheets.
A5: 3. Please enter the year/s and kind of estimates to be used in columns F and G respectively. These would be reflected in subsequent sheets.
A8: Categories of DNIs | F8: Year of Analysis | G8: Estimates of Budget
A9: Behaviour Change Interventions | B9: Micronutrient Supplementation and Deworming Interventions | C9: Supplementary Feeding | D9: Severe Acute Malnutrition Treatment | E9: Others
A10: BCC for breastfeeding, complementary feeding and hand washing | B10: Adolescent: IFA | C10: Supplementary Feeding: Children and P & L Women | D10: SAM Treatment | E10: Conditional Cash Transfers for P & L Women | F10: 2014-15 | G10: Approved Budget
B11: Adolescent: Deworming | C11: Supplementary Feeding: Adolescent Girls | E11: Insecticide Treated Bed-nets for PW | F11: 2015-16 | G11: Proposed Budget
B12: Child: Deworming | F12: 2016-17 | G12: Actual Expenditure
B13: Child: IFA | F13: 2017-18 | G13: Budget Estimates
B14: Child: Diarrhoea Control (ORS + Zinc) | G14: Revised Estimates
B15: Child Vit. A
B16: P and L Women: Calcium and IFA
B17: Pregnant Women: Deworming
B18: Salt iodisation for general population
B101: BCC for breastfeeding, complementary feeding and hand washing | C101: Adolescent: IFA | D101: Supplementary Feeding: Children and P & L Women | E101: SAM Treatment | F101: Conditional Cash Transfers for P & L Women | G101: Adolescent: Deworming | H101: Supplementary Feeding: Adolescent Girls | I101: Insecticide Treated Bed-nets for PW | J101: Child: Deworming | K101: Child: IFA | L101: Child: Diarrhoea Control (ORS + Zinc) | M101: Child Vit. A | N101: P and L Women: Calcium and IFA | O101: Pregnant Women: Deworming | P101: Salt iodisation for general population
B102: 2014-15 | C102: 2015-16 | D102: 2016-17 | E102: 2017-18
B103: Approved Budget | C103: Proposed Budget | D103: Actual Expenditure | E103: Budget Estimates | F103: Revised Estimates

Sheet Input 1- NHM
A1: NHM-ROP Budget Data (values in INR lakh)
A2: Instructions:
A3: 1. Fill in the FMR Codes and Programmatic Interventions from SPIP/ROP/FMR.
A4: 2. For each entry, choose the relevant DNI Category and DNIs in column C and D from the Drop-Down list.
A5: 3. Choose the relevant years from the Drop-Down list from Column E onwards.
A6: 4. Choose the estimates of budget from the Drop Down list from Column E onwards.
A8: FMR Codes | B8: Programmatic Interventions | C8: DNIs Category | D8: DNIs | E8: 2014-15 | F8: 2015-16 | G8: 2016-17 | H8: 2017-18 | I8: 2018-19 | J8: 2019-20 | K8: 2020-21 | L8: 2021-22 | M8: 2022-23 | N8: 2023-24 | O8: 2024-25 | P8: 2025-26 | Q8: 2026-27 | R8: 2027-28 | S8: 2028-29
E9: Approved Budget | F9: Approved Budget | G9: Approved Budget | H9: Approved Budget | I9: Approved Budget | J9: Approved Budget | K9: Actual Expenditure | L9: Budget Estimates | M9: Proposed Budget
A10: Annexure A | B10: Reproductive and Child Health
A11: A.1.3 | B11: Janani Suraksha Yojana | C11: Others | D11: Conditional Cash Transfers for P & L Women | G11: 34339.71 | H11: 34414.71
A12: A.1.6.1 | B12: Drugs and Consumables under JSSK | C12: Micronutrient Supplementation and Deworming Interventions | D12: P and L Women: Calcium and IFA | G12: 1120
A13: A.2.4 | B13: Infant and Young Child Feeding/IYCF | C13: Behaviour Change Interventions | D13: BCC for breastfeeding, complementary feeding and hand washing | G13: 0 | H13: 3.8
A14: A.2.5 | B14: Care of Sick Children and Severe Malnutrition (e.g. NRCs, CDNCs, Community Based Programme etc.) | C14: Severe Acute Malnutrition Treatment | D14: SAM Treatment | G14: 734.69 | H14: 452.4
A15: A.2.6 | B15: Management of Diarrhoea & ARI & micronutrient malnutrition | C15: Micronutrient Supplementation and Deworming Interventions | D15: Child Vit. A | G15: 380 | H15: 517.31
A16: A.2.7 | B16: Micronutrient Supplementation Programme (cost of activities except cost of procurement of supplements) | C16: Micronutrient Supplementation and Deworming Interventions | D16: Child Vit. A | G16: 31.16 | H16: 272.5
A17: A.2.11 | B17: National Iron Plus Initiative ( procurement to be budgeted under B.16.2.6 & printing under IEC) | C17: Micronutrient Supplementation and Deworming Interventions | D17: Child: IFA | G17: 38.06 | H17: 260.6
A18: A.4.3 | B18: Weekly Iron and Folic Acid Supplementation Programme activities (procurement to be budgeted under B16.2.6) | C18: Micronutrient Supplementation and Deworming Interventions | D18: Adolescent: IFA | G18: 0 | H18: 0
A19: A4.5.9 | B19: WIFS-Supply Chain management | C19: Micronutrient Supplementation and Deworming Interventions | D19: Adolescent: IFA | G19: 100 | H19: 0
A20: A9.2.2.1 | B20: Training NIPI | C20: Micronutrient Supplementation and Deworming Interventions | D20: Child: IFA | G20: 236.6
A21: A9.2.2.2 | B21: Training on facility based management of SAM for NRC staff | C21: Severe Acute Malnutrition Treatment | D21: SAM Treatment | G21: 9.82
A22: A9.2.2.4 | B22: Orientation of district, block And below functionaries for NDD | G22: 76.7
A23: A9.5.4 | B23: Care of sick children and severe malnutrition at FRUs | C23: Severe Acute Malnutrition Treatment | D23: SAM Treatment | H23: 9.82
A24: A.9.5.5.2.c | B24: 4 day Training on IYCF for MOs, SNs, ANMs, of all DPs and SCs | C24: Others | D24: BCC for breastfeeding, complementary feeding and hand washing | G24: 78.34 | H24: 86.64
A25: A.9.5.2.d | B25: Orientation on National Deworming Day | C25: Micronutrient Supplementation and Deworming Interventions | D25: Child: Deworming | H25: 226.08
A26: A.9.7.3 | B26: WIFS Training | C26: Micronutrient Supplementation and Deworming Interventions | D26: Adolescent: IFA | G26: 4.8 | H26: 6.7
A27: Annexure HR | B27: NIDDCP - PMU | C27: Micronutrient Supplementation and Deworming Interventions | D27: Salt iodisation for general population | H27: 218.05
A28: ANNEXURE B | B28: Mission Flexible Pool
A29: B1.1.3.2.8 | B29: Incentives to ASHAs for Alternate Service deliveries for Vit. A round | G29: 240
A30: B1.1.3.2.4 | B30: Incentive for referral of SAM cases to NRC | C30: Severe Acute Malnutrition Treatment | D30: SAM Treatment | H30: 0
A31: B1.1.3.2.5 | B31: Incentive for follow-up of discharged SAM children from NRCs | C31: Severe Acute Malnutrition Treatment | D31: SAM Treatment | H31: 22.5
A32: B1.1.3.2.6 | B32: ASHA incentive under MAA programme @Rs. 100 per ASHA for quarterly mother's meeting | C32: Behaviour Change Interventions | D32: BCC for breastfeeding, complementary feeding and hand washing | H32: 348
A33: B1.1.3.2.7 | B33: Incentive for National Deworming Day for mobilising out of school children | C33: Micronutrient Supplementation and Deworming Interventions | D33: Child: Deworming | H33: 174
A34: B1.1.3.2.8 | B34: Incentive for IDCF for distribution of ORS to family with under five children | C34: Micronutrient Supplementation and Deworming Interventions | D34: Child: Diarrhoea Control (ORS + Zinc) | H34: 87
A35: B1.1.3.2.9 | B35: ASHA / Other incentive for Vit. A bi-annual round | C35: Micronutrient Supplementation and Deworming Interventions | D35: Child Vit. A | H35: 240
A36: B1.1.3.5.2 | B36: Incentive for mobilising children and / or ensuring compliance (0-6years) | C36: Micronutrient Supplementation and Deworming Interventions | D36: Child: IFA | H36: 1044
A37: B1.1.3.6.9 | B37: Incentive for mobilising and ensuring every eligible child (1-19 years) is administered albendazole during NDD | C37: Micronutrient Supplementation and Deworming Interventions | D37: Child: Deworming | G37: 190
A38: B4.1.5.4.3 | B38: Infrastructure IYCF Counselling Centres | C38: Behaviour Change Interventions | D38: BCC for breastfeeding, complementary feeding and hand washing | G38: 4 | H38: 6
A39: B10.6.7 | B39: Health Education and Publicity for NIDDCP | C39: Micronutrient Supplementation and Deworming Interventions | D39: Salt iodisation for general population | H39: 8
A40: B10.7.2 | B40: Printing of WIFS cards | C40: Micronutrient Supplementation and Deworming Interventions | D40: Adolescent: IFA | G40: 0 | H40: 0
A41: B10.7.4.1 | B41: Printing of NIPI cards | C41: Micronutrient Supplementation and Deworming Interventions | D41: Child: IFA | G41: 137.63 | H41: 137.63
A42: B10.7.4.7 | B42: Printing of IEC material and reporting formats etc. for NDD | C42: Micronutrient Supplementation and Deworming Interventions | D42: Child: Deworming | H42: 265.44
A43: B10.7.4.8 | B43: Printing of IEC materials and reporting formats for IDCF | C43: Micronutrient Supplementation and Deworming Interventions | D43: Child: Diarrhoea Control (ORS + Zinc) | H43: 122.5
A44: B16. 1.2.2 | B44: Procurement of equipment for IYCF counselling centres | C44: Behaviour Change Interventions | D44: BCC for breastfeeding, complementary feeding and hand washing | H44: 0
A45: B16.1.2.5 | B45: Equipment for IYCF counseling | C45: Behaviour Change Interventions | D45: BCC for breastfeeding, complementary feeding and hand washing | G45: 12.45
A46: B16.2.2.2 | B46: Vit A solution | C46: Micronutrient Supplementation and Deworming Interventions | D46: Child Vit. A | H46: 399.59
A47: B16.2.2.3 | B47: ORS | C47: Micronutrient Supplementation and Deworming Interventions | D47: Child: Diarrhoea Control (ORS + Zinc) | H47: 930.86
A48: B16.2.2.4 | B48: Zinc tablet for Diarrhoea programme | C48: Micronutrient Supplementation and Deworming Interventions | D48: Child: Diarrhoea Control (ORS + Zinc) | G48: 178.52 | H48: 178.52
A49: B16.2.2.5 | B49: ORS packet for Diarrhoea program | C49: Micronutrient Supplementation and Deworming Interventions | D49: Child: Diarrhoea Control (ORS + Zinc) | G49: 930.86
A50: B.16.2.6.1.a | B50: IFA Syrup with auto dispenser | C50: Micronutrient Supplementation and Deworming Interventions | D50: Child: IFA | G50: 1176.19 | H50: 1517.63
A51: B.16.2.6.1.b | B51: Albendazole Tablets | C51: Micronutrient Supplementation and Deworming Interventions | D51: Child: Deworming | G51: 294.05 | H51: 328.54
A52: B.16.2.6.3.a | B52: IFA tablets | C52: Micronutrient Supplementation and Deworming Interventions | D52: Adolescent: IFA | G52: 2549.39 | H52: 0
A53: B.16.2.6.3.b | B53: Albendazole Tablets | C53: Micronutrient Supplementation and Deworming Interventions | D53: Adolescent: Deworming | G53: 437.65 | H53: 426.59
A55: B.30.8 | B55: Staff for NRC | C55: Severe Acute Malnutrition Treatment | D55: SAM Treatment | H55: 409.68
A56: IEC-FMR B10.7. 4.8 | B56: IDCF related IEC (adding up heads) | C56: Micronutrient Supplementation and Deworming Interventions | D56: Child: Diarrhoea Control (ORS + Zinc) | H56: 49.51
A57: Annexure D | B57: NATIONAL IODINE DEFICIENCY DISORDERS CONTROL PROGRAMME (NIDDCP): TOTAL | C57: Micronutrient Supplementation and Deworming Interventions | D57: Salt iodisation for general population | G57: 13.52 | H57: 17.4
A58: Annexure F | B58: National Vector Borne Disease Control Programme | C58: Others | D58: Insecticide Treated Bed-nets for PW
A59: F.1.1.c.iii | B59: Impregnation of bed-nets | C59: Others | D59: Insecticide Treated Bed-nets for PW | G59: 0 | H59: 0

Sheet Input 2- DDGs
A1: Detailed Demand for Grants (DDGs) Budget Data (values in INR lakh)
A2: Department/Demand Number:
A3: Instructions:
A4: 1. Fill in the relevant budget heads in Columns A to G from the State Budget Documents.
A5: 2. For each entry, choose the relevant DNI Category and DNIs in column C and D from the Drop-Down list.
A6: 3. Choose the relevant years from the Drop-Down list from Column E onwards.
A7: 4. Choose the estimates of budget from the Drop Down list from Column E onwards.
A9: Major Head | B9: Sub-Major Head | C9: Minor head | D9: Sub Minor Head | E9: Detailed Head | F9: Object Head | G9: Scheme Head Name | H9: DNI Category | I9: DNI | J9: 2014-15 | K9: 2015-16 | L9: 2016-17 | M9: 2017-18 | N9: 2018-19
J10: Actual Expenditure | K10: Actual Expenditure | L10: Revised Estimates | M10: Budget Estimates | N10: Budget Estimates
A11: Revenue Expenditure
A12: 2235 Social Security and Welfare | B12: 02 Social Welfare | C12: 102 Child Welfare | D12: 0002 Special Nutritious Meal Scheme | F12: 2235021020002 | G12: Special Nutritious meal scheme | H12: Supplementary Feeding | I12: Supplementary Feeding: Children and P & L Women | K12: 39.26 | L12: 45.01 | M12: 56.34
D13: 0222 ICDS | F13: 2235-02-102-0222-20 | G13: Training | H13: Behaviour Change Interventions | I13: BCC for breastfeeding, complementary feeding and hand washing | K13: 872.74907 | L13: 3511.79 | M13: 3939.41
D14: 0222 ICDS | F14: 2235-02-102-0222-26 | G14: Advertising and printing | H14: Behaviour Change Interventions | I14: BCC for breastfeeding, complementary feeding and hand washing | K14: 294.32972 | L14: 1672.18 | M14: 2239.55
D15: 0224 Rajiv Gandhi Scheme for empowerment of adolescent girls - SABLA | F15: 2235021020224 | G15: SABLA Diet | H15: Supplementary Feeding | I15: Supplementary Feeding: Adolescent Girls | K15: 880.56058 | L15: 12899.72 | M15: 154
D16: 0322 ICDS | F16: 0322-20-03 | G16: Training | H16: Behaviour Change Interventions | I16: BCC for breastfeeding, complementary feeding and hand washing | K16: 485.33969 | L16: 1003 | M16: 1212.79
D17: 0322 ICDS | F17: 2235-02-102-0322-26 | G17: Advertising and printing | H17: Behaviour Change Interventions | I17: BCC for breastfeeding, complementary feeding and hand washing | K17: 25.58384 | L17: 3 | M17: 769.04
D18: 0324 Rajiv Gandhi Scheme for empowerment of adolescent girls - SABLA | F18: 2235021020324 | G18: SABLA Diet | H18: Supplementary Feeding | I18: Supplementary Feeding: Adolescent Girls | K18: 436.26227 | L18: 2823.79 | M18: 3827
D19: 0219 Indira Gandhi Matritva Sahyog Yojana and NMEW | F19: 2235021030219 | G19: IGMSY | H19: Others | I19: Conditional Cash Transfers for P & L Women | K19: 2961.46474 | L19: 7016 | M19: 5153.46
D20: 0319 Indira Gandhi Matritva Sahyog Yojana and NMEW | F20: 2235021030319 | G20: IGMSY | H20: Others | I20: Conditional Cash Transfers for P & L Women | K20: 1407.378 | L20: 1386.74 | M20: 2576.73
D21: 0312 Rajiv Gandhi Scheme for empowerment of adolescent girls - SABLA | F21: 2235027890312 | G21: SABLA Diet | H21: Supplementary Feeding | I21: Supplementary Feeding: Adolescent Girls | K21: 139.40703 | L21: 1411.69 | M21: 1275.66
D22: 0319 Indira Gandhi Matritva Sahyog Yojana and NMEW | F22: 2235027890313 | G22: IGMSY | H22: Others | I22: Conditional Cash Transfers for P & L Women | K22: 345.164 | L22: 693.26 | M22: 858.91
D23: 0203 ICDS | F23: 2236021010203 | G23: SNP-ICDS | H23: Supplementary Feeding | I23: Supplementary Feeding: Children and P & L Women | K23: 46388.3299 | L23: 59663.88 | M23: 70691.5
D24: 0303 ICDS | F24: 2236021010303 | G24: SNP-ICDS | H24: Supplementary Feeding | I24: Supplementary Feeding: Children and P & L Women | K24: 26456.01419 | L24: 841 | M24: 26940.91
D25: 0204 ICDS | F25: 2236027890204 | G25: SNP-ICDS-SCSP | H25: Supplementary Feeding | I25: Supplementary Feeding: Children and P & L Women | K25: 0 | L25: 33680.68 | M25: 23563.84
D26: 0304 ICDS | F26: 2236027890304 | G26: SNP-ICDS-SCSP | H26: Supplementary Feeding | I26: Supplementary Feeding: Children and P & L Women | K26: 33407.16776 | L26: 21089.96 | M26: 48692
D27: 0305 ICDS | F27: 2236027960305 | G27: SNP-ICDS-TSP | H27: Supplementary Feeding | I27: Supplementary Feeding: Children and P & L Women | K27: 1629.20076 | L27: 7247.94 | M27: 8776.96
D28: 0101 Refund of unpaid amount of advance pay, travel allowance advance and other items | F28: 2236029110101 | G28: Recoveries | H28: Supplementary Feeding | I28: Supplementary Feeding: Children and P & L Women | K28: -76.75456 | L28: 0 | M28: 0
D29: 0102 Return of excess, unexpected withdrawal | F29: 2236029110102 | G29: Recoveries | H29: Supplementary Feeding | I29: Supplementary Feeding: Children and P & L Women | K29: -220.407 | L29: 0 | M29: 0
D30: 0602 Return of excess, unexpected withdrawa | F30: 2236029110602 | G30: Recoveries | H30: Supplementary Feeding | I30: Supplementary Feeding: Children and P & L Women | K30: -97.68922 | L30: 0 | M30: 0
A34: Capital Expenditure
A38: Loans and Advances

Sheet Input 3- Budget & Pop.
B1: Total State Budget | F1: State population for computing per capita DNI budget
B2: (values in INR crore) | F2: (values in INR crore)
B4: Instructions: | F4: Instructions:
B5: 1. Choose the relevant years from the Drop-Down list from Column B. | F5: 1. Choose the relevant years from the Drop-Down list from Column F.
B6: 2. Choose the estimates of budget from the Drop Down list from Column C. | F6: 2. Enter the relevant population in Columns G and H.
B7: 3. Enter values for Total State Budget from the State Budget Documents in Column D.
B9: Year | C9: Estimates of Expenditure | D9: Total State Budget | F9: Year | G9: Children (0-6 years) | H9: Female (11-49 years) | I9: Total
B10: 2014-15 | C10: Actual Expenditure | D10: 94698.04 | F10: 2014-15 | G10: 1.9133964 | H10: 2.7817647 | I10: =G10+H10 -> 4.6951611
B11: 2015-16 | C11: Actual Expenditure | D11: 112328.03 | F11: 2015-16 | G11: 1.9133964 | H11: 2.7817647 | I11: =G11+H11 -> 4.6951611
B12: 2016-17 | C12: Revised Estimates | D12: 154327.47 | F12: 2016-17 | G12: 1.9133964 | H12: 2.7817647 | I12: 4.6951611
B13: 2017-18 | C13: Budget Estimates | D13: 160085.69 | F13: 2017-18 | G13: 1.9133964 | H13: 2.7817647 | I13: 4.6951611
B14: 2018-19 | F14: 2018-19 | G14: 1.9 | H14: 2.8 | I14: 4.7
B15: 2019-20 | F15: 2019-20 | I15: 0
B16: 2020-21 | F16: 2020-21 | I16: 0
B17: 2021-22 | F17: 2021-22 | I17: 0
B18: 2022-23 | F18: 2022-23 | I18: 0
B19: 2023-24 | F19: 2023-24 | I19: 0
B20: 2024-25 | F20: 2024-25 | I20: 0
B21: 2025-26 | F21: 2025-26 | I21: 0
B22: 2026-27 | F22: 2026-27 | I22: 0
B23: 2027-28 | F23: 2027-28 | I23: 0
B24: 2028-29 | F24: 2028-29 | I24: 0
D86: Actual Expenditure
D87: Budget Estimates
D88: Revised Estimates

Sheet Output Sheet
A1: DNI Budget (values in INR crore)
A2: Instructions:
A3: 1. The present template provides a list of Direct Nutrition Interventions (DNIs), which can be amended as per user's discretion.
A4: 2. Choose the relevant DNI in Column B from the Drop-Down list, for each entry in Column A. Also ensure that relevant DNIs are added / chosen for correct DNI Category as in Category Sheet of the tool.
A5: 3. Additional DNIs can be added to any DNI category by inserting additional rows below the Category Sub-Total.
A6: 4. Choose the relevant years from the Drop-Down list from Column C onwards.
A7: 5. The sheet will compute the total budget outlays for DNIs entered on pressing the "UPDATE" button
A11: Direct Nutrition Interventions | B11: Interventions | C11: Budget Outlays
C12: 2014-15 | D12: 2015-16 | E12: 2016-17 | F12: 2017-18
A13: I. Behaviour Change Interventions
A14: Combined budget outlays for three interventions : (i) Counselling for mothers during pregnancy (ii) Counselling for optimal breastfeeding to caregivers of children 0–6months (iii) Counselling for complementary feeding and hand washing to caregivers of children 6 -23 months, under schemes IYCF and IEC-ICDS. | B14: BCC for breastfeeding, complementary feeding and hand washing | C14: 0 | D14: 16.7800232 | E14: 62.8476 | F14: 86.0523
A15: I. Behaviour Change Interventions (Sub-Total) | C15: =SUM($C$14:$C$14) -> 0 | D15: =SUM($D$14:$D$14) -> 16.7800232 | E15: =SUM($E$14:$E$14) -> 62.8476 | F15: =SUM($F$14:$F$14) -> 86.0523
A16: II. Micronutrient Supplementation and Deworming Interventions
A17: Vitamin A supplementation for children 6–59 months | B17: Child Vit. A | C17: 0 | D17: 0 | E17: 4.1116 | F17: 14.294
A18: Treatment of diarrhoea for children under 5 years (ORS + Zinc) | B18: Child: Diarrhoea Control (ORS + Zinc) | C18: 0 | D18: 0 | E18: 11.0938 | F18: 13.6839
A19: Deworming for children 12–59 months | B19: Child: Deworming | C19: 0 | D19: 0 | E19: 4.8405 | F19: 9.9406
A20: Deworming for adolescents 10–19 years | B20: Adolescent: Deworming | C20: 0 | D20: 0 | E20: 4.3765 | F20: 4.2659
A21: Deworming for pregnant women | B21: Pregnant Women: Deworming
A22: Iron folic acid supplements (IFA) for children 6–59 months | B22: P and L Women: IFA
A23: Iron-folic acid supplements (IFA) for adolescents 10-19 years | B23: Adolescent: IFA | C23: 0 | D23: 0 | E23: 26.5419 | F23: 0.067
A24: Iron folic acid supplements for pregnant women and breastfeeding mothers of children 0-6 months | B24: P and L Women: IFA
A25: Calcium supplementation for pregnant women and breastfeeding mothers | B25: P and L Women: Calcium
A26: Salt iodization for general population | B26: Salt iodisation for general population | C26: 0 | D26: 0 | E26: 0.1352 | F26: 2.4345
A27: II. Micronutrient Supplementation and Deworming Interventions (Sub-Total) | C27: =SUM($C$16:$C$26) -> 0 | D27: =SUM($D$16:$D$26) -> 0 | E27: =SUM($E$16:$E$26) -> 51.0995 | F27: =SUM($F$16:$F$26) -> 44.6859
A28: III. Supplementary Feeding
A29: (i) Complementary food supplements for children 6–36 months of age (ii) Supplementary food for pregnant and lactating women for 6 months after delivery (iii) Additional food ration for severely underweight (WAZ< -3) children 6–59 months | B29: Supplementary Feeding: Children and P & L Women | C29: 0 | D29: 1075.251218 | E29: 1225.6847 | F29: 1787.2155
A30: Adolescent Supplementary Feeding | B30: Supplementary Feeding: Adolescent Girls | C30: 0 | D30: 14.5622988 | E30: 171.352 | F30: 52.5666
A31: III. Supplementary Feeding (Sub-Total) | C31: =SUM($C$28:$C$30) -> 0 | D31: =SUM($D$28:$D$30) -> 1089.813517 | E31: =SUM($E$28:$E$30) -> 1397.0367 | F31: =SUM($F$28:$F$30) -> 1839.7821
A32: IV. Severe Acute Malnutrition Treatment
A33: Facility-based treatment for children 6–59 months for children with severe acute malnutrition | B33: SAM Treatment | C33: 0 | D33: 0 | E33: 7.4451 | F33: 8.944
A34: IV. Severe Acute Malnutrition Treatment (Sub-Total) | C34: =SUM($C$32:$C$33) -> 0 | D34: =SUM($D$32:$D$33) -> 0 | E34: =SUM($E$32:$E$33) -> 7.4451 | F34: =SUM($F$32:$F$33) -> 8.944
A35: V. Others
A36: Facility-based treatment for children 6–59 months for children with severe acute malnutrition | B36: Insecticide Treated Bed-nets for PW | C36: 0 | D36: 0 | E36: 0 | F36: 0
A37: Conditional Cash Transfers for P and L women | B37: Conditional Cash Transfers for P & L Women | C37: 150 | D37: 47.1400674 | E37: 434.3571 | F37: 430.0381
A39: V. Others (Sub-Total) | C39: =SUM($C$35:$C$38) -> 150 | D39: =SUM($D$35:$D$38) -> 47.1400674 | E39: =SUM($E$35:$E$38) -> 434.3571 | F39: =SUM($F$35:$F$38) -> 430.0381
B40: Total DNI Budget (I + II + III + IV + V) | C40: 150 | D40: 1153.733608 | E40: 1952.786 | F40: 2409.5024
B41: Total DNI budget as a % of Total State Budget | C41: 0.1583982097 | D41: 1.027111049 | E41: 1.265352176 | F41: 1.505132907
B42: Per Capita DNI Budget (in INR) | C42: 31.94778556 | D42: 245.728226 | E42: 415.9145892 | F42: 513.1884399

Sheet Budget Adequacy
A1: Resource Gap Analysis for DNIs (values in INR crore)
A3: Instructions:
A4: 1. Choose the relevant DNIs for which analysis has to be done in Column A, from the Drop-Down list.
A5: 2. Select the year/s from the Drop-Down list.
A6: 3. Enter manually the Resource Requirement / Cost Estimates for each DNI in respective columns, in INR crore.
A7: 4. Press the UPDATE button to automatically fill-in the Budget Outlays and compute the associated Resource Gap.
A10: Direct Nutrition Interventions | D10: 0
B11: Resource Requirement | C11: Budget Outlays | D11: Resource Gap | E11: Percentage of Resource Gap | F11: Resource Requirement | G11: Budget Outlays | H11: Resource Gap | I11: Percentage of Resource Gap | J11: Resource Requirement | K11: Budget Outlays | L11: Resource Gap | M11: Percentage of Resource Gap | N11: Resource Requirement | O11: Budget Outlays | P11: Resource Gap | Q11: Percentage of Resource Gap
A12: Adolescent: IFA
A13: Adolescent: Deworming
A14: SAM Treatment
A15: Child: IFA
A16: Child Vit. A
A17: BCC for breastfeeding, complementary feeding and hand washing
A18: Conditional Cash Transfers for P & L Women
A19: Supplementary Feeding: Adolescent Girls
A20: Supplementary Feeding: Children and P & L Women
A21: Adolescent: IFA
A22: SAM Treatment

Sheet Charts
A2: Instructions: | F2: Instructions: | I2: Instructions: | L2: Instructions:
A3: 1. Select the year/s from the Drop-Down list in Column A | F3: 1. Select the year/s from the Drop-Down list in Column B | I3: 1. Select the interventions in Column A from the Drop-Down list | L3: 1. Select the interventions in Column A from the Drop-Down list. These should befromas the ones selected in "Budget Adequacy" sheet
A4: 2. Press the UPDATE button to fill-in the tables | F4: 2. Press the ADD CHART button to create the respective charts | I4: 2. Select the year/s from the Drop-Down list in Column B | L4: 2. Select the year/s from the Drop-Down list in Column B
A5: 3. Press the ADD CHART button to create the respective charts | I5: 3. Press the ADD CHART button to create the respective charts | L5: 3. Press the ADD CHART button to create the respective charts
B7: Chart 1: Total DNI Budget (in INR Crore) | C7: Chart 2: DNI Budget as a % of Total State Budget | D7: Chart 3: Per Capita DNI Budget (in INR) | F7: Chart 4: Composition of DNIs Budget (in %) | I7: 5. Intervention-wise budget outlays | L7: Chart 6: Adequacy of Budgets for DNIs (in INR Crore)
G10: Add Year Drop-Down | J10: Add Year Drop-Down | M10: Add Year Drop-Down
A12: Year | B12: Total DNI Budget (in INR Crore) | C12: DNI Budget as a % of Total State Budget | D12: Per Capita DNI budget (In INR) | F12: Categories | G12: Composition of DNI Budget(%) | I12: Interventions | J12: Amount (in INR crore) | L12: Direct Nutrition Interventions | M12: Resource Requirement (in INR Crore) | N12: Budget Outlays (In INR Crore)
A13: 2014-15 | F13: Behaviour Change Interventions | G13: 16.42039789 | I13: Adolescent: IFA | J13: 0 | L13: Adolescent: IFA | M13: 35 | N13: 11.5
A14: 2015-16 | F14: Micronutrient Supplementation and Deworming Interventions | G14: 23.10405864 | I14: Adolescent Calcium | L14: Adolescent Calcium
A15: 2016-17 | F15: Supplementary Feeding | G15: 18.26373654 | I15: P and L Women: Calcium | L15: P and L Women: Calcium
A16: 2017-18 | F16: Severe Acute Malnutrition Treatment | G16: 29.2979657 | I16: Child: IFA | L16: Child: IFA | M16: 59
F17: Others | G17: 12.91384124 | I17: Child Vit. A | J17: 0 | L17: Child Vit. A | M17: 100 | N17: 42
I18: BCC for breastfeeding, complementary feeding and hand washing | J18: 16.7800232 | L18: BCC for breastfeeding, complementary feeding and hand washing | M18: 150 | N18: 805
I19: Conditional Cash Transfers for P & L Women | J19: 47.1400674 | L19: Conditional Cash Transfers for P & L Women | M19: 1600 | N19: 1000
I20: SAM Treatment | J20: 0 | L20: SAM Treatment | M20: 100 | N20: 655.4
I21: Supplementary Feeding: Children and P & L Women | J21: 1075.251218 | L21: Supplementary Feeding: Children and P & L Women | M21: 160 | N21: 173.25
I22: Supplementary Feeding: Adolescent Girls | J22: 14.5622988 | L22: Supplementary Feeding: Adolescent Girls | M22: 1550 | N22: 1291.94
L23: BCC for breastfeeding, complementary feeding and hand washing | M23: 150 | N23: 805
CQ200: Year | CR200: Per Capita DNI budget (In INR)
CQ201: 2014-15 | CR201: 0.02572423077
CQ202: 2015-16 | CR202: 0.02740269231
CQ203: 2016-17 | CR203: 0.02908115385
F500: I. Behaviour Change Interventions (Sub-Total)
F501: II. Micronutrient Supplementation and Deworming Interventions (Sub-Total)
F502: III. Supplementary Feeding (Sub-Total)
F503: IV. Severe Acute Malnutrition Treatment (Sub-Total)
F504: V. Others (Sub-Total)

Sheet Export Charts to PDF
